[Event "Early-Titled-Tuesday-Blitz-April-16-2024"]
[Site "Chess.com"]
[Date "2024.04.16"]
[Round "5"]
[White "Revan_2002"]
[Black "Firouzja2003"]
[Result "1-0"]
[WhiteElo "2726"]
[BlackElo "3032"]
[TimeControl "180+1"]
[EndTime "8:57:23 PDT"]
[Termination "Revan_2002 won by resignation"]

1. Nf3 {[%clk 0:02:56.8]} 1... Nf6 {[%clk 0:02:59.2]} 2. g3 {[%clk 0:02:56.6]}
2... g6 {[%clk 0:02:57.3]} 3. Bg2 {[%clk 0:02:56.8]} 3... Bg7 {[%clk 0:02:58.2]}
4. O-O {[%clk 0:02:57.3]} 4... O-O {[%clk 0:02:58.8]} 5. d3 {[%clk 0:02:57.1]}
5... d5 {[%clk 0:02:58.2]} 6. Nbd2 {[%clk 0:02:56.5]} 6... Nc6 {[%clk
0:02:58.2]} 7. e4 {[%clk 0:02:55]} 7... e5 {[%clk 0:02:58.6]} 8. Re1 {[%clk
0:02:50.8]} 8... a5 {[%clk 0:02:58.5]} 9. a4 {[%clk 0:02:49.3]} 9... Re8 {[%clk
0:02:56.9]} 10. c3 {[%clk 0:02:41.6]} 10... h6 {[%clk 0:02:56.5]} 11. exd5
{[%clk 0:02:35.8]} 11... Nxd5 {[%clk 0:02:57.4]} 12. Nc4 {[%clk 0:02:36.1]}
12... b6 {[%clk 0:02:53.8]} 13. h4 {[%clk 0:02:29.7]} 13... Bg4 {[%clk
0:02:39.1]} 14. Qb3 {[%clk 0:02:26.5]} 14... Be6 {[%clk 0:02:37.6]} 15. Bd2
{[%clk 0:02:15.1]} 15... f6 {[%clk 0:02:33.9]} 16. Rad1 {[%clk 0:02:09.3]} 16...
Bf7 {[%clk 0:02:33]} 17. Bc1 {[%clk 0:02:08.2]} 17... Qd7 {[%clk 0:02:32.1]} 18.
Qb5 {[%clk 0:01:48]} 18... Rad8 {[%clk 0:02:27.1]} 19. Kh2 {[%clk 0:01:39.4]}
19... f5 {[%clk 0:02:21.1]} 20. Bh3 {[%clk 0:01:12.6]} 20... Re7 {[%clk
0:02:11.4]} 21. Re2 {[%clk 0:00:45.2]} 21... Rde8 {[%clk 0:02:02.8]} 22. Rde1
{[%clk 0:00:30.8]} 22... Kh7 {[%clk 0:01:47.8]} 23. Bg2 {[%clk 0:00:22.1]} 23...
Nf6 {[%clk 0:01:35.2]} 24. Ng5+ {[%clk 0:00:16.8]} 24... hxg5 {[%clk 0:01:35.1]}
25. Bxc6 {[%clk 0:00:15.2]} 25... Qxd3 {[%clk 0:01:14.8]} 26. Nxe5 {[%clk
0:00:14.3]} 26... Qxb5 {[%clk 0:01:14.9]} 27. axb5 {[%clk 0:00:13.7]} 27... Rxe5
{[%clk 0:01:14.9]} 28. Bxe8 {[%clk 0:00:09]} 28... Rxe8 {[%clk 0:01:09.9]} 29.
Rxe8 {[%clk 0:00:06.1]} 29... Bxe8 {[%clk 0:01:10.8]} 30. hxg5 {[%clk
0:00:05.7]} 30... Ng4+ {[%clk 0:01:10.6]} 31. Kg2 {[%clk 0:00:06]} 31... Bxb5
{[%clk 0:01:11.1]} 32. Bf4 {[%clk 0:00:05.3]} 32... Bc6+ {[%clk 0:00:53.2]} 33.
f3 {[%clk 0:00:05.8]} 33... b5 {[%clk 0:00:52.6]} 34. Re7 {[%clk 0:00:05.8]}
34... Kg8 {[%clk 0:00:48.6]} 35. Rxc7 {[%clk 0:00:06.3]} 35... Bd5 {[%clk
0:00:45.6]} 36. Rc5 {[%clk 0:00:06.8]} 36... Bc4 {[%clk 0:00:38.5]} 37. fxg4
{[%clk 0:00:06.7]} 37... fxg4 {[%clk 0:00:39.4]} 38. Be5 {[%clk 0:00:07]} 38...
Bf8 {[%clk 0:00:40]} 39. Rc7 {[%clk 0:00:06.2]} 39... a4 {[%clk 0:00:39]} 40.
Bd4 {[%clk 0:00:04.4]} 40... Bd3 {[%clk 0:00:37.1]} 41. Kf2 {[%clk 0:00:04.4]}
41... Bd6 {[%clk 0:00:37.4]} 42. Rg7+ {[%clk 0:00:04]} 42... Kf8 {[%clk
0:00:37.5]} 43. Rd7 {[%clk 0:00:04.6]} 43... a3 {[%clk 0:00:35]} 44. bxa3 {[%clk
0:00:04.2]} 44... Bxa3 {[%clk 0:00:35.9]} 45. Bg7+ {[%clk 0:00:04.4]} 45... Kg8
{[%clk 0:00:34.8]} 46. Rxd3 {[%clk 0:00:05]} 46... Kxg7 {[%clk 0:00:35.7]} 47.
Rd5 {[%clk 0:00:05.4]} 47... b4 {[%clk 0:00:36]} 48. cxb4 {[%clk 0:00:04.6]}
48... Bxb4 {[%clk 0:00:36.9]} 49. Ke3 {[%clk 0:00:03.6]} 49... Kf7 {[%clk
0:00:34.8]} 50. Kf4 {[%clk 0:00:03.4]} 50... Ke6 {[%clk 0:00:35.5]} 51. Rb5
{[%clk 0:00:04]} 51... Bd6+ {[%clk 0:00:35.1]} 52. Kxg4 {[%clk 0:00:04.4]} 52...
Bc7 {[%clk 0:00:35.8]} 53. Rc5 {[%clk 0:00:04.1]} 53... Bd6 {[%clk 0:00:35.9]}
54. Rc6 {[%clk 0:00:04.1]} 54... Kd7 {[%clk 0:00:36.3]} 55. Ra6 {[%clk 0:00:05]}
55... Ke6 {[%clk 0:00:36.8]} 56. Kf3 {[%clk 0:00:05.4]} 56... Kd5 {[%clk
0:00:37.3]} 57. g4 {[%clk 0:00:05.7]} 57... Ke5 {[%clk 0:00:37.7]} 58. Ra5+
{[%clk 0:00:05.3]} 58... Ke6 {[%clk 0:00:37.6]} 59. Ke4 {[%clk 0:00:05.7]} 59...
Be7 {[%clk 0:00:38.2]} 60. Ra6+ {[%clk 0:00:06.3]} 60... Kf7 {[%clk 0:00:38.6]}
61. Kf4 {[%clk 0:00:06]} 61... Bd8 {[%clk 0:00:38.1]} 62. Ra7+ {[%clk
0:00:05.6]} 62... Kf8 {[%clk 0:00:35.7]} 63. Ra8 {[%clk 0:00:04.3]} 63... Ke7
{[%clk 0:00:36.4]} 64. Ra7+ {[%clk 0:00:04.1]} 64... Kf8 {[%clk 0:00:36]} 65.
Ke5 {[%clk 0:00:03.9]} 65... Bxg5 {[%clk 0:00:36.2]} 66. Ke6 {[%clk 0:00:04.5]}
66... Kg8 {[%clk 0:00:33.9]} 67. Rf7 {[%clk 0:00:03.9]} 67... Bh4 {[%clk
0:00:32.9]} 68. Rd7 {[%clk 0:00:04.3]} 68... Bg5 {[%clk 0:00:32.9]} 69. Rd5
{[%clk 0:00:04.3]} 69... Bc1 {[%clk 0:00:19.8]} 70. Kf6 {[%clk 0:00:03.9]} 70...
g5 {[%clk 0:00:20.4]} 71. Kg6 {[%clk 0:00:02.2]} 71... Kf8 {[%clk 0:00:20.5]}
72. Rf5+ {[%clk 0:00:02.8]} 72... Ke7 {[%clk 0:00:18.6]} 73. Rxg5 {[%clk
0:00:02.7]} 1-0

[Event "Early-Titled-Tuesday-Blitz-April-16-2024"]
[Site "Chess.com"]
[Date "2024.04.16"]
[Round "5"]
[White "ReinisUz"]
[Black "flawian2008"]
[Result "1-0"]
[WhiteElo "2374"]
[BlackElo "2549"]
[TimeControl "180+1"]
[EndTime "8:57:27 PDT"]
[Termination "ReinisUz won by resignation"]

1. c4 {[%clk 0:03:00.9]} 1... g6 {[%clk 0:02:54.3]} 2. Nc3 {[%clk 0:03:00.4]}
2... Bg7 {[%clk 0:02:51.6]} 3. g3 {[%clk 0:03:00.6]} 3... Nf6 {[%clk 0:02:50.4]}
4. Bg2 {[%clk 0:03:00.8]} 4... O-O {[%clk 0:02:51.1]} 5. d3 {[%clk 0:02:59.8]}
5... d6 {[%clk 0:02:51.7]} 6. e4 {[%clk 0:02:57.7]} 6... e5 {[%clk 0:02:51.6]}
7. Nge2 {[%clk 0:02:57.4]} 7... Ne8 {[%clk 0:02:49.8]} 8. O-O {[%clk 0:02:56.7]}
8... f5 {[%clk 0:02:50.2]} 9. f4 {[%clk 0:02:55.3]} 9... Nc6 {[%clk 0:02:48.9]}
10. Be3 {[%clk 0:02:53.2]} 10... exf4 {[%clk 0:02:42.6]} 11. Nxf4 {[%clk
0:02:50.7]} 11... Nd4 {[%clk 0:02:39]} 12. a3 {[%clk 0:02:44.5]} 12... c6 {[%clk
0:02:38.2]} 13. b4 {[%clk 0:02:43.8]} 13... Nc7 {[%clk 0:02:27]} 14. Rc1 {[%clk
0:02:42.8]} 14... Nce6 {[%clk 0:02:19.7]} 15. Nce2 {[%clk 0:02:31.9]} 15...
Nxe2+ {[%clk 0:02:16.8]} 16. Qxe2 {[%clk 0:02:30.5]} 16... Nd4 {[%clk
0:02:16.9]} 17. Qd1 {[%clk 0:01:53]} 17... a5 {[%clk 0:02:10.6]} 18. c5 {[%clk
0:01:36.2]} 18... axb4 {[%clk 0:02:07.4]} 19. axb4 {[%clk 0:01:36.3]} 19... dxc5
{[%clk 0:02:05.8]} 20. bxc5 {[%clk 0:01:35.6]} 20... Ra3 {[%clk 0:02:02]} 21.
Rc4 {[%clk 0:01:30.9]} 21... Ne6 {[%clk 0:01:53.6]} 22. exf5 {[%clk 0:00:57.2]}
22... Nxf4 {[%clk 0:01:51.8]} 23. Bxf4 {[%clk 0:00:52.2]} 23... Rxd3 {[%clk
0:01:49.6]} 24. Qb1 {[%clk 0:00:38.9]} 24... gxf5 {[%clk 0:01:48.9]} 25. Bd6
{[%clk 0:00:36]} 25... Rd4 {[%clk 0:01:34.6]} 26. Bxf8 {[%clk 0:00:15.6]} 26...
Rxc4 {[%clk 0:01:34.6]} 27. Bxg7 {[%clk 0:00:16]} 27... Kxg7 {[%clk 0:01:33.3]}
28. Qb2+ {[%clk 0:00:15.1]} 28... Qd4+ {[%clk 0:01:33.3]} 29. Qxd4+ {[%clk
0:00:14.7]} 29... Rxd4 {[%clk 0:01:34.2]} 30. Bh3 {[%clk 0:00:15.4]} 30... Kg6
{[%clk 0:01:29.3]} 31. Re1 {[%clk 0:00:14.9]} 31... Kf6 {[%clk 0:01:09.6]} 32.
Re8 {[%clk 0:00:14.4]} 32... Be6 {[%clk 0:01:08.5]} 33. Rb8 {[%clk 0:00:14.3]}
33... Rb4 {[%clk 0:01:08.6]} 34. Kf2 {[%clk 0:00:12.1]} 34... Rb2+ {[%clk
0:01:06.9]} 35. Ke3 {[%clk 0:00:11.7]} 35... Rxh2 {[%clk 0:01:06.5]} 36. Bf1
{[%clk 0:00:12]} 36... Rb2 {[%clk 0:01:05.1]} 37. Bd3 {[%clk 0:00:10]} 37... Rb3
{[%clk 0:01:03.1]} 38. Kd4 {[%clk 0:00:10]} 38... Rb4+ {[%clk 0:00:59.5]} 39.
Kc3 {[%clk 0:00:09.7]} 39... Rg4 {[%clk 0:00:50.9]} 40. Rxb7 {[%clk 0:00:09.7]}
40... Rxg3 {[%clk 0:00:51.4]} 41. Rxh7 {[%clk 0:00:09.9]} 41... f4 {[%clk
0:00:49.5]} 42. Rh6+ {[%clk 0:00:10.3]} 42... Ke5 {[%clk 0:00:49.6]} 43. Rh5+
{[%clk 0:00:07.8]} 43... Kf6 {[%clk 0:00:50.1]} 44. Rh6+ {[%clk 0:00:08.1]}
44... Ke7 {[%clk 0:00:49.1]} 45. Kd4 {[%clk 0:00:08.4]} 45... Bd5 {[%clk
0:00:45.7]} 46. Be4 {[%clk 0:00:06.2]} 46... f3 {[%clk 0:00:20.1]} 47. Bxd5
{[%clk 0:00:02.7]} 47... f2 {[%clk 0:00:20.7]} 48. Rh1 {[%clk 0:00:02.9]} 48...
Rg1 {[%clk 0:00:16.6]} 49. Rh7+ {[%clk 0:00:03.3]} 49... Kf6 {[%clk 0:00:14.4]}
50. Rf7+ {[%clk 0:00:04.2]} 50... Kg6 {[%clk 0:00:08.6]} 51. Rxf2 {[%clk
0:00:05.1]} 51... Rd1+ {[%clk 0:00:08.7]} 52. Kc4 {[%clk 0:00:05.7]} 52... Rxd5
{[%clk 0:00:09.6]} 53. Ra2 {[%clk 0:00:06]} 53... Rf5 {[%clk 0:00:07.3]} 54. Ra6
{[%clk 0:00:06.5]} 54... Rf4+ {[%clk 0:00:08]} 55. Kc3 {[%clk 0:00:06.2]} 55...
Rf6 {[%clk 0:00:08.7]} 56. Kb4 {[%clk 0:00:06.6]} 56... Kf5 {[%clk 0:00:08.8]}
57. Ka5 {[%clk 0:00:07.1]} 57... Ke5 {[%clk 0:00:09.1]} 58. Kb6 {[%clk
0:00:07.7]} 58... Kd5 {[%clk 0:00:09.8]} 59. Ra8 {[%clk 0:00:07.6]} 59... Rh6
{[%clk 0:00:03.3]} 60. Rd8+ {[%clk 0:00:07.7]} 60... Ke5 {[%clk 0:00:03]} 61.
Rd2 {[%clk 0:00:05.6]} 61... Rg6 {[%clk 0:00:03]} 62. Kc7 {[%clk 0:00:04.9]}
62... Rh6 {[%clk 0:00:02.7]} 63. Rd6 {[%clk 0:00:04.9]} 63... Rh7+ {[%clk
0:00:01.1]} 64. Kxc6 {[%clk 0:00:05.1]} 64... Ra7 {[%clk 0:00:01.5]} 65. Rd8
{[%clk 0:00:05]} 65... Ke6 {[%clk 0:00:01.6]} 66. Re8+ {[%clk 0:00:05]} 66...
Kf7 {[%clk 0:00:01.8]} 67. Re1 {[%clk 0:00:05.6]} 67... Ra6+ {[%clk 0:00:01.8]}
68. Kc7 {[%clk 0:00:05.7]} 68... Ra5 {[%clk 0:00:02.5]} 69. c6 {[%clk
0:00:06.1]} 69... Ra7+ {[%clk 0:00:03.1]} 70. Kc8 {[%clk 0:00:06.4]} 70... Ra2
{[%clk 0:00:03.8]} 71. c7 {[%clk 0:00:07]} 1-0

[Event "Early-Titled-Tuesday-Blitz-April-16-2024"]
[Site "Chess.com"]
[Date "2024.04.16"]
[Round "5"]
[White "MatthewG-p4p"]
[Black "Root_21"]
[Result "0-1"]
[WhiteElo "2846"]
[BlackElo "2639"]
[TimeControl "180+1"]
[EndTime "8:57:28 PDT"]
[Termination "Root_21 won by resignation"]

1. e4 {[%clk 0:02:53.4]} 1... c5 {[%clk 0:02:58.9]} 2. c3 {[%clk 0:02:52.9]}
2... Nf6 {[%clk 0:02:58.3]} 3. e5 {[%clk 0:02:52.4]} 3... Nd5 {[%clk 0:02:58.7]}
4. Nf3 {[%clk 0:02:53.1]} 4... d6 {[%clk 0:02:59.1]} 5. Bc4 {[%clk 0:02:53.2]}
5... e6 {[%clk 0:02:58.9]} 6. d4 {[%clk 0:02:52.7]} 6... cxd4 {[%clk 0:02:59.1]}
7. cxd4 {[%clk 0:02:53.2]} 7... Nc6 {[%clk 0:02:59.3]} 8. O-O {[%clk 0:02:52.4]}
8... Nb6 {[%clk 0:02:58.2]} 9. Bb3 {[%clk 0:02:52.4]} 9... dxe5 {[%clk
0:02:54.5]} 10. dxe5 {[%clk 0:02:53.3]} 10... Qxd1 {[%clk 0:02:52.3]} 11. Rxd1
{[%clk 0:02:53.3]} 11... Be7 {[%clk 0:02:47.2]} 12. Nc3 {[%clk 0:02:52.7]} 12...
O-O {[%clk 0:02:46]} 13. Be3 {[%clk 0:02:43.7]} 13... Nd7 {[%clk 0:02:38.7]} 14.
Bf4 {[%clk 0:02:35.4]} 14... Nc5 {[%clk 0:02:36.9]} 15. Bc2 {[%clk 0:02:32.3]}
15... b6 {[%clk 0:02:34.7]} 16. a3 {[%clk 0:02:29.7]} 16... a5 {[%clk 0:02:20]}
17. Na4 {[%clk 0:01:52.9]} 17... Rb8 {[%clk 0:02:02.8]} 18. Rac1 {[%clk
0:01:38.6]} 18... Ba6 {[%clk 0:01:53]} 19. Nxc5 {[%clk 0:01:16.5]} 19... Bxc5
{[%clk 0:01:53.1]} 20. Ng5 {[%clk 0:01:16.7]} 20... Nd4 {[%clk 0:01:28.5]} 21.
Bxh7+ {[%clk 0:00:33]} 21... Kh8 {[%clk 0:01:27.9]} 22. Rxd4 {[%clk 0:00:29.3]}
22... Bxd4 {[%clk 0:01:27.2]} 23. Be4 {[%clk 0:00:24.1]} 23... Bxb2 {[%clk
0:00:58.1]} 24. Rb1 {[%clk 0:00:24.2]} 24... Bxa3 {[%clk 0:00:56.3]} 25. Rb3
{[%clk 0:00:24.3]} 25... Bc5 {[%clk 0:00:55.9]} 26. Rh3+ {[%clk 0:00:24.2]}
26... Kg8 {[%clk 0:00:53.6]} 27. Bh7+ {[%clk 0:00:24.3]} 27... Kh8 {[%clk
0:00:54]} 28. Bd3+ {[%clk 0:00:24.8]} 28... Kg8 {[%clk 0:00:54.6]} 29. Bxa6
{[%clk 0:00:25.6]} 29... Rfd8 {[%clk 0:00:45.6]} 30. Kf1 {[%clk 0:00:13.8]}
30... a4 {[%clk 0:00:43]} 31. Ne4 {[%clk 0:00:13.2]} 31... Be7 {[%clk
0:00:36.2]} 32. Nd6 {[%clk 0:00:09.9]} 32... f6 {[%clk 0:00:32.1]} 33. Bc4
{[%clk 0:00:07.7]} 33... g5 {[%clk 0:00:25.3]} 34. Be3 {[%clk 0:00:03.8]} 34...
Bxd6 {[%clk 0:00:22.1]} 35. Bxe6+ {[%clk 0:00:04.6]} 35... Kg7 {[%clk
0:00:22.5]} 36. exd6 {[%clk 0:00:05.3]} 36... Rxd6 {[%clk 0:00:23.1]} 37. Bf5
{[%clk 0:00:03.7]} 37... Rh8 {[%clk 0:00:20.9]} 38. Rg3 {[%clk 0:00:02.2]} 38...
a3 {[%clk 0:00:19.8]} 39. Bxg5 {[%clk 0:00:01.9]} 39... fxg5 {[%clk 0:00:13.2]}
40. Rxa3 {[%clk 0:00:01.8]} 40... Rxh2 {[%clk 0:00:13.2]} 41. Bg4 {[%clk
0:00:02.1]} 41... Rh8 {[%clk 0:00:11.6]} 42. Bf3 {[%clk 0:00:02.7]} 42... Rb8
{[%clk 0:00:11.4]} 43. Ra7+ {[%clk 0:00:03.3]} 43... Kf6 {[%clk 0:00:11.3]} 44.
Ra4 {[%clk 0:00:03.3]} 44... b5 {[%clk 0:00:11.5]} 45. Rb4 {[%clk 0:00:04.2]}
45... Rdb6 {[%clk 0:00:09.7]} 46. Ke2 {[%clk 0:00:05.1]} 46... Ke5 {[%clk
0:00:10.1]} 47. Kd3 {[%clk 0:00:05.7]} 47... Kd6 {[%clk 0:00:10.4]} 48. Kd4
{[%clk 0:00:06.1]} 48... Rc8 {[%clk 0:00:09.9]} 49. Be2 {[%clk 0:00:05.1]} 49...
Rc2 {[%clk 0:00:09.6]} 50. Ke3 {[%clk 0:00:05.8]} 50... Rc5 {[%clk 0:00:09]} 51.
Bd3 {[%clk 0:00:03.4]} 51... Re5+ {[%clk 0:00:09.2]} 52. Kd4 {[%clk 0:00:03.4]}
52... Rd5+ {[%clk 0:00:09.8]} 53. Ke3 {[%clk 0:00:04.2]} 53... Kc5 {[%clk
0:00:10.2]} 54. Rb1 {[%clk 0:00:04.4]} 54... b4 {[%clk 0:00:10.4]} 55. Be4
{[%clk 0:00:04.9]} 55... Re5 {[%clk 0:00:10.5]} 56. Rc1+ {[%clk 0:00:05.2]}
56... Kd6 {[%clk 0:00:10.7]} 57. Kd4 {[%clk 0:00:06.1]} 57... b3 {[%clk
0:00:10.3]} 58. Rc8 {[%clk 0:00:04.6]} 58... b2 {[%clk 0:00:08.2]} 59. Rd8+
{[%clk 0:00:04.1]} 59... Ke7 {[%clk 0:00:08.6]} 60. Kxe5 {[%clk 0:00:02]} 60...
Kxd8 {[%clk 0:00:08.2]} 61. Bb1 {[%clk 0:00:02.9]} 61... Rc6 {[%clk 0:00:08.5]}
62. Kf5 {[%clk 0:00:03.2]} 62... Rc5+ {[%clk 0:00:09.1]} 63. Kg4 {[%clk
0:00:03.2]} 63... Ke7 {[%clk 0:00:09.8]} 64. g3 {[%clk 0:00:03.4]} 64... Kf6
{[%clk 0:00:09.1]} 0-1

[Event "Early-Titled-Tuesday-Blitz-April-16-2024"]
[Site "Chess.com"]
[Date "2024.04.16"]
[Round "5"]
[White "kachsona"]
[Black "sorch29"]
[Result "1-0"]
[WhiteElo "2616"]
[BlackElo "2465"]
[TimeControl "180+1"]
[EndTime "8:57:29 PDT"]
[Termination "kachsona won by resignation"]

1. b3 {[%clk 0:03:00.9]} 1... Nf6 {[%clk 0:02:53]} 2. Bb2 {[%clk 0:03:00.2]}
2... e6 {[%clk 0:02:48.9]} 3. c4 {[%clk 0:02:59.4]} 3... d5 {[%clk 0:02:49]} 4.
g3 {[%clk 0:02:58.8]} 4... b6 {[%clk 0:02:48]} 5. Bg2 {[%clk 0:02:58.8]} 5...
Bb7 {[%clk 0:02:48.5]} 6. Nf3 {[%clk 0:02:57.9]} 6... Be7 {[%clk 0:02:42.7]} 7.
O-O {[%clk 0:02:57]} 7... O-O {[%clk 0:02:43.4]} 8. d4 {[%clk 0:02:56.9]} 8...
Nbd7 {[%clk 0:02:38.6]} 9. Nc3 {[%clk 0:02:51.8]} 9... c6 {[%clk 0:02:18.5]} 10.
Qc2 {[%clk 0:02:50]} 10... Ba6 {[%clk 0:02:15.2]} 11. Nd2 {[%clk 0:02:48.3]}
11... Rc8 {[%clk 0:02:11.5]} 12. e4 {[%clk 0:02:46.9]} 12... c5 {[%clk
0:01:59.2]} 13. e5 {[%clk 0:02:17.3]} 13... Ng4 {[%clk 0:01:45]} 14. h3 {[%clk
0:02:06.9]} 14... cxd4 {[%clk 0:01:44.6]} 15. hxg4 {[%clk 0:02:05.4]} 15... dxc3
{[%clk 0:01:44.5]} 16. Qxc3 {[%clk 0:01:48.9]} 16... Qc7 {[%clk 0:01:25.4]} 17.
Rac1 {[%clk 0:01:38.3]} 17... dxc4 {[%clk 0:01:22.1]} 18. bxc4 {[%clk
0:01:33.8]} 18... Bb7 {[%clk 0:01:18.1]} 19. Ne4 {[%clk 0:01:28.6]} 19... Bxe4
{[%clk 0:01:07.8]} 20. Bxe4 {[%clk 0:01:27.8]} 20... g6 {[%clk 0:01:05]} 21. Kg2
{[%clk 0:01:23.5]} 21... Kg7 {[%clk 0:01:02.6]} 22. Rh1 {[%clk 0:01:17.7]} 22...
Rh8 {[%clk 0:01:03.2]} 23. Qd2 {[%clk 0:01:11.7]} 23... h6 {[%clk 0:01:01.4]}
24. Rh2 {[%clk 0:00:44.7]} 24... Nc5 {[%clk 0:00:58.7]} 25. Bf3 {[%clk
0:00:41.9]} 25... Rcd8 {[%clk 0:00:58]} 26. Qc2 {[%clk 0:00:35.8]} 26... Nd3
{[%clk 0:00:49.7]} 27. Rb1 {[%clk 0:00:35.4]} 27... Qc5 {[%clk 0:00:29.8]} 28.
Ba1 {[%clk 0:00:29.4]} 28... Nb4 {[%clk 0:00:09.8]} 29. Qb3 {[%clk 0:00:24.4]}
29... Nc6 {[%clk 0:00:10]} 30. Rhh1 {[%clk 0:00:17.3]} 30... Nd4 {[%clk
0:00:10.1]} 31. Bxd4 {[%clk 0:00:14.3]} 31... Rxd4 {[%clk 0:00:08.3]} 32. Rhd1
{[%clk 0:00:14.1]} 32... Qxe5 {[%clk 0:00:06.1]} 33. Qb2 {[%clk 0:00:11.9]}
33... Bc5 {[%clk 0:00:04.3]} 34. Rxd4 {[%clk 0:00:09.3]} 34... Bxd4 {[%clk
0:00:04.2]} 35. Qc2 {[%clk 0:00:08.1]} 35... Rd8 {[%clk 0:00:04.4]} 36. Rd1
{[%clk 0:00:07.9]} 36... Qc5 {[%clk 0:00:04.3]} 37. Rd3 {[%clk 0:00:07.4]} 37...
e5 {[%clk 0:00:04.6]} 38. Qb3 {[%clk 0:00:05]} 38... Qd6 {[%clk 0:00:04.7]} 39.
Bd5 {[%clk 0:00:04.9]} 39... Qf6 {[%clk 0:00:05.1]} 40. Rf3 {[%clk 0:00:04.9]}
40... Qe7 {[%clk 0:00:04]} 41. Rxf7+ {[%clk 0:00:05.1]} 41... Qxf7 {[%clk
0:00:04.7]} 42. Bxf7 {[%clk 0:00:05.7]} 42... Kxf7 {[%clk 0:00:05.4]} 43. Qf3+
{[%clk 0:00:06.3]} 43... Ke7 {[%clk 0:00:02.4]} 44. Qb7+ {[%clk 0:00:06.3]}
44... Rd7 {[%clk 0:00:03.3]} 45. Qc6 {[%clk 0:00:06]} 45... Rd6 {[%clk
0:00:03.4]} 46. Qb7+ {[%clk 0:00:04.9]} 46... Rd7 {[%clk 0:00:04]} 47. Qe4
{[%clk 0:00:05.5]} 47... Kf6 {[%clk 0:00:03.8]} 48. Qa8 {[%clk 0:00:05]} 48...
Re7 {[%clk 0:00:03.7]} 49. Qh8+ {[%clk 0:00:04.8]} 49... Kf7 {[%clk 0:00:02.6]}
50. Qxh6 {[%clk 0:00:04.8]} 50... Bc5 {[%clk 0:00:03.1]} 51. Qh7+ {[%clk
0:00:04.1]} 51... Kf6 {[%clk 0:00:03.2]} 52. Qh8+ {[%clk 0:00:04.2]} 52... Kf7
{[%clk 0:00:03.6]} 53. g5 {[%clk 0:00:04.8]} 53... Bd4 {[%clk 0:00:03]} 54. Qf6+
{[%clk 0:00:03.5]} 54... Ke8 {[%clk 0:00:03.1]} 55. Qxg6+ {[%clk 0:00:04.1]}
55... Kd7 {[%clk 0:00:04]} 56. Qf5+ {[%clk 0:00:04.1]} 56... Kd6 {[%clk
0:00:04.1]} 57. g6 {[%clk 0:00:03.8]} 57... e4 {[%clk 0:00:04.8]} 58. Qf4+
{[%clk 0:00:03.3]} 58... Kd7 {[%clk 0:00:03.8]} 59. Qd2 {[%clk 0:00:01.9]} 59...
e3 {[%clk 0:00:02.4]} 60. Qxd4+ {[%clk 0:00:02.4]} 60... Ke8 {[%clk 0:00:03.3]}
61. fxe3 {[%clk 0:00:02.7]} 61... Rd7 {[%clk 0:00:04]} 62. Qxd7+ {[%clk
0:00:02.5]} 62... Kxd7 {[%clk 0:00:04.3]} 63. g7 {[%clk 0:00:03.2]} 63... Ke7
{[%clk 0:00:05.2]} 64. g8=Q {[%clk 0:00:03.7]} 1-0